fUSD/lending_fUSD_20241202
["ID","MTS","AMOUNT","RATE_DAILY","PERIOD"]
[343953519,1733135438970,-1194.0478,7.6e-05,2]
[343953520,1733135438979,-230.614,7.6e-05,2]
[343953521,1733135438988,-284.96,7.6e-05,2]
[343953522,1733135438997,-150.0,7.6e-05,2]
[343953523,1733135439006,-150.0,7.6e-05,2]
[343953524,1733135439015,-150.0,7.6e-05,2]
[343953525,1733135439024,-434.96,7.6e-05,2]
[343953526,1733135439036,-974.5797,7.6e-05,2]
[343953527,1733135439045,-1410.33083901,7.6e-05,2]
[343953528,1733135439122,-1089.66916099,7.6e-05,2]
[343953529,1733135439132,-264.38,7.6e-05,2]
[343953530,1733135439142,-600.0,7.6e-05,2]
[343953531,1733135439151,-434.96,7.6e-05,2]
[343953532,1733135439161,-500.0,7.661e-05,2]
[343953533,1733135439170,-500.0,7.661e-05,2]
[343953534,1733135439180,-500.0,7.661e-05,2]
[343953535,1733135439189,-500.0,7.661e-05,2]
[343953536,1733135439199,-500.0,7.661e-05,2]
[343953537,1733135439208,-435.5945,7.661e-05,2]
[343953538,1733135439218,-627.79,7.67e-05,2]
[343953539,1733135439228,-301.53,7.67e-05,2]
[343953540,1733135439238,-503.64091238,7.673e-05,2]
[343953541,1733135439248,-500.0,7.673e-05,2]
[343953542,1733135439258,-500.0,7.699e-05,2]
[343953543,1733135439267,-223.42091827,7.699e-05,2]
[343953544,1733135439277,-1940.0,7.7e-05,2]
[343953545,1733135439288,-45533.01013416,7.7e-05,2]
[343953546,1733135439300,-1004.89267036,7.7e-05,2]
[343953547,1733135439484,-3863.14238318,7.7e-05,2]
[343953571,1733135440949,-1084.23293692,7.7e-05,2]
[343953572,1733135440978,-388.23896335,7.7e-05,2]
[343953573,1733135441001,-652.81494178,7.7e-05,2]
[343953574,1733135441393,-1901.2119235,7.7e-05,2]
[343953575,1733135442078,165.17,7.098e-05,2]
[343953595,1733135445018,-954.3309,7.7e-05,2]
[343953596,1733135445031,-383780.95529171,7.7e-05,2]
[343953597,1733135445049,-500.72000001,7.7e-05,2]
[343953598,1733135445116,-5934.80592209,7.7e-05,2]
[343953599,1733135445127,-5996.98338124,7.7e-05,2]
[343953600,1733135445173,-5997.93513767,7.7e-05,2]
[343953601,1733135445185,-9153.80000013,7.7e-05,2]
[343953602,1733135445197,-34115.72265,7.7e-05,2]
[343953603,1733135445209,-4787.0803,7.7e-05,2]
[343953604,1733135445220,-70714.42586511,7.7e-05,2]
[343953605,1733135445236,-4710.21824424,7.7e-05,2]
[343953613,1733135447113,-577.45826869,7.7e-05,2]
[343953614,1733135447125,-1573.3496988,7.7e-05,2]
[343953615,1733135447137,-1129.29626058,7.7e-05,2]
[343953616,1733135447327,-3594.11521696,7.7e-05,2]
[343953617,1733135447402,-5999.99999895,7.7e-05,2]
[343953619,1733135565579,586.92,7.066e-05,2]
[343953620,1733135679570,200.0,6.996e-05,2]
[343953621,1733135702635,2000.0,6.983e-05,2]
[343953622,1733135709298,3763.66,6.963e-05,2]
[343953627,1733135764144,308.43,6.954e-05,2]
[343953628,1733135777852,878.44,7.01e-05,2]
[343953629,1733135896573,300.0,6.953e-05,2]
[343953630,1733135919118,166.67,7.162e-05,2]
[343953631,1733135939153,931.67,6.937e-05,2]
[343953632,1733135961951,250.0,6.943e-05,2]
[343953633,1733135969360,1500.0,6.95e-05,2]
[343953634,1733136223037,318.46,6.896e-05,2]
[343953635,1733136270223,200.07517059,6.861e-05,2]
[343953636,1733136300477,2000.0,6.873e-05,2]
[343953637,1733136396556,200.0,6.839e-05,2]
[343953639,1733136426720,300.0,7e-05,2]
[343953640,1733136429656,700.0,7.1e-05,2]
[343953642,1733136467933,2955.31,6.842e-05,2]
[343953643,1733136504301,2640.69,6.816e-05,2]
[343953644,1733136523746,299.88983481,6.782e-05,2]
[343953645,1733136596531,172.41,6.85e-05,2]
[343953669,1733136632288,-1100.0,7.2e-05,2]
[343953670,1733136632298,-273.6,7.3e-05,2]
[343953671,1733136632312,-749.0,7.3e-05,2]
[343953672,1733136632323,-477.4,7.3e-05,2]
[343953673,1733136632332,-1378.72952047,7.4e-05,2]
[343953674,1733136632353,-521.27047953,7.4e-05,2]
[343953675,1733136632363,-1262.48256929,7.5e-05,2]
[343953676,1733136632372,-150.24695118,7.5e-05,2]
[343953677,1733136632383,-149.75304882,7.5e-05,2]
[343953678,1733136632392,-2698.0,7.547e-05,2]
[343953679,1733136632402,-1674.24695118,7.6e-05,2]
[343953680,1733136632438,-825.75304882,7.6e-05,2]
[343953681,1733136632447,-300.0,7.6e-05,2]
[343953682,1733136632457,-150.0,7.671e-05,2]
[343953683,1733136632466,-500.0,7.673e-05,2]
[343953684,1733136632476,-150.0,7.697e-05,2]
[343953685,1733136632485,-150.0,7.698e-05,2]
[343953686,1733136632498,-150.0,7.698e-05,2]
[343953687,1733136632508,-150.0,7.698e-05,2]
[343953688,1733136632518,-150.0,7.698e-05,2]
[343953689,1733136632530,-150.0,7.698e-05,2]
[343953690,1733136632540,-150.0,7.698e-05,2]
[343953691,1733136632549,-150.0,7.698e-05,2]
[343953692,1733136632559,-150.0,7.698e-05,2]
[343953693,1733136632569,-150.0,7.698e-05,2]
[343953694,1733136632578,-150.0,7.698e-05,2]
[343953695,1733136632588,-150.0,7.698e-05,2]
[343953696,1733136632597,-150.0,7.698e-05,2]
[343953697,1733136632607,-150.0,7.698e-05,2]
[343953698,1733136632616,-150.0,7.698e-05,2]
[343953699,1733136632626,-150.0,7.698e-05,2]
[343953700,1733136632635,-150.0,7.698e-05,2]
[343953701,1733136632645,-178.73673461,7.699e-05,2]
[343953702,1733136632655,-1308.0,7.699e-05,2]
[343953703,1733136632665,-2600.6,7.699e-05,2]
[343953704,1733136632678,-1844.0,7.7e-05,2]
[343953705,1733136632688,-32342.28994079,7.7e-05,2]
[343953706,1733136633380,250.0,6.85e-05,2]
[343953918,1733136639132,-19003.8,7.7e-05,2]
[343953919,1733136639144,-7811.83567689,7.7e-05,2]
[343953920,1733136639158,-3799.93045815,7.7e-05,2]
[343953921,1733136639171,-492.25,7.7e-05,2]
[343953922,1733136639217,-752.6699979,7.7e-05,2]
[343953923,1733136639234,-1896.69,7.7e-05,2]
[343953924,1733136639245,-3466.7980446,7.7e-05,2]
[343953925,1733136639316,-58547.51540093,7.7e-05,2]
[343953926,1733136639327,-6799.67775,7.7e-05,2]
[343953927,1733136639339,-5212.68344167,7.7e-05,2]
[343953928,1733136639351,-22476.72790256,7.7e-05,2]
[343953929,1733136639399,-2001.1404798,7.7e-05,2]
[343953930,1733136639415,-361.69620129,7.7e-05,2]
[343953968,1733136640555,-952.21,7.7e-05,2]
[343954195,1733136642767,-4786.26451103,7.7e-05,2]
[343954198,1733136642780,-2157.34276703,7.7e-05,2]
[343954200,1733136642792,-629.61675847,7.7e-05,2]
[343954215,1733136642923,-47537.00549999,7.7e-05,2]
[343954217,1733136642946,-472.03562628,7.7e-05,2]
[343954218,1733136642957,-614.38175577,7.7e-05,2]
[343954219,1733136642968,-1301.09983481,7.7e-05,2]
[343954221,1733136643024,-866.55999968,7.7e-05,2]
[343954223,1733136643036,-19921.68432165,7.7e-05,2]
[343954228,1733136643075,-17318.72983427,7.7e-05,2]
[343954230,1733136643087,-4865.67477669,7.7e-05,2]
[343954232,1733136643104,-2760.83481354,7.7e-05,2]
[343954234,1733136643115,-19026.0,7.7e-05,2]
[343954526,1733136646009,-178.73673461,7.699e-05,2]
[343954528,1733136646019,-1664.0,7.7e-05,2]
[343954530,1733136646028,-2321.28826863,7.7e-05,2]
[343954533,1733136646051,-142.56359916,7.7e-05,2]
[343954535,1733136646062,-388.39687551,7.7e-05,2]
[343954538,1733136646075,-508.86862549,7.7e-05,2]
[343954540,1733136646086,-468.40048952,7.7e-05,2]
[343954548,1733136646145,-1177.94282,7.7e-05,2]
[343954555,1733136646201,-2565.0,7.7e-05,2]
[343954557,1733136646213,-1445.92382222,7.7e-05,2]
[343954559,1733136646224,-53728.18283535,7.7e-05,2]
[343954563,1733136646249,-1447.49960574,7.7e-05,2]
[343954565,1733136646260,-2200.04136,7.7e-05,2]
[343954567,1733136646271,-250280.40212234,7.7e-05,2]
[343954653,1733136718648,3044.67,6.944e-05,2]
[343954654,1733136767586,151.21,5.526e-05,2]
[343954655,1733136768267,151.21,6.908e-05,2]
[343954656,1733136806164,166.68,7.153e-05,2]
[343954657,1733136861992,275.69,6.908e-05,2]
[343954658,1733136946417,2000.0,6.893e-05,2]
[343954660,1733137246081,250.0,6.88e-05,2]
[343954661,1733137431665,166.68,7.057e-05,2]
[343954662,1733137489329,151.21,5.492e-05,2]
[343954663,1733137539414,524.68,6.849e-05,2]
[343954664,1733137585737,265.12,6.835e-05,2]
[343954667,1733137831981,-342.435007,7.529e-05,2]
[343954672,1733137832082,-660.315293,7.529e-05,2]
[343954673,1733137832094,-1427.89065407,7.53e-05,2]
[343954674,1733137832104,-217.9092,7.53e-05,2]
[343954675,1733137832113,-310.1717,7.53e-05,2]
[343954676,1733137832123,-277.21315293,7.599e-05,2]
[343954677,1733137832184,-22.78684707,7.599e-05,2]
[343954678,1733137832193,-322.97379692,7.6e-05,2]
[343954679,1733137832207,-124.45909608,7.6e-05,2]
[343954680,1733137832217,-271.25331692,7.6e-05,2]
[343954765,1733137839983,-228.74668308,7.6e-05,2]
[343954766,1733137839993,-2500.0,7.6e-05,2]
[343954767,1733137840003,-687.0,7.623e-05,2]
[343954768,1733137840013,-3870.198,7.629e-05,2]
[343954769,1733137840023,-176.914,7.629e-05,2]
[343954770,1733137840033,-150.0,7.629e-05,2]
[343954771,1733137840042,-1002.70262198,7.629e-05,2]
[343954772,1733137840052,-2631.43869494,7.63e-05,2]
[343954773,1733137840063,-10442.7,7.63e-05,2]
[343954774,1733137840075,-6216.54494219,7.63e-05,2]
[343954775,1733137840086,-2752.02792,7.63e-05,2]
[343954776,1733137840098,-266.1388,7.63e-05,2]
[343954777,1733137840138,-763.42,7.63e-05,2]
[343954778,1733137840149,-11407.500005,7.63e-05,2]
[343954779,1733137840161,-1423.2392352,7.63e-05,2]
[343954780,1733137840171,-5334.66514778,7.63e-05,2]
[343954781,1733137840182,-5002.49505801,7.63e-05,2]
[343954782,1733137840193,-5766.73556984,7.63e-05,2]
[343954783,1733137840207,-5529.37787969,7.63e-05,2]
[343954784,1733137840219,-578.83532771,7.63e-05,2]
[343954785,1733137840231,-7169.60000033,7.63e-05,2]
[343954786,1733137840242,-654.5957391,7.63e-05,2]
[343954790,1733137841928,-1059.99999,7.63e-05,2]
[343954791,1733137841940,-1137.383485,7.63e-05,2]
[343954792,1733137841952,-20866.31740916,7.63e-05,2]
[343954793,1733137841968,-119005.46539284,7.63e-05,2]
[343954794,1733137841977,-563.0,7.646e-05,2]
[343954795,1733137841987,-136.9860061,7.646e-05,2]
[343954796,1733137841999,-359.48299532,7.646e-05,2]
[343954797,1733137842199,-762.47813,7.646e-05,2]
[343954868,1733137844035,-773.06286858,7.646e-05,2]
[343954870,1733137844044,-1252.0,7.646e-05,2]
[343954872,1733137844053,-2678.93713442,7.646e-05,2]
[343954874,1733137844065,-1081.06286558,7.646e-05,2]
[343954876,1733137844074,-575.709652,7.646e-05,2]
[343954879,1733137844090,-240.290348,7.646e-05,2]
[343954881,1733137844099,-3527.0,7.646e-05,2]
[343954883,1733137844108,-975.0,7.646e-05,2]
[343954885,1733137844117,-535.0,7.646e-05,2]
[343954887,1733137844127,-1000.0,7.661e-05,2]
[343954889,1733137844136,-1000.0,7.661e-05,2]
[343954891,1733137844146,-285.2237,7.661e-05,2]
[343954893,1733137844156,-13707.0,7.664e-05,2]
[343954895,1733137844165,-2418.0039517,7.664e-05,2]
[343954897,1733137844176,-3543.9960483,7.664e-05,2]
[343954899,1733137844186,-1166.0,7.664e-05,2]
[343954901,1733137844195,-150.0,7.664e-05,2]
[343954903,1733137844208,-1097.0,7.664e-05,2]
[343954905,1733137844217,-501.19354669,7.673e-05,2]
[343954907,1733137844227,-501.54767524,7.673e-05,2]
[343954909,1733137844236,-500.0,7.673e-05,2]
[343954911,1733137844246,-501.14363931,7.673e-05,2]
[343954913,1733137844255,-157.43351121,7.673e-05,2]
[343954915,1733137844265,-161.85975798,7.673e-05,2]
[343954917,1733137844274,-500.0,7.673e-05,2]
[343954919,1733137844283,-157.46356985,7.673e-05,2]
[343954921,1733137844293,-154.86581781,7.673e-05,2]
[343954923,1733137844302,-159.86148801,7.673e-05,2]
[343954925,1733137844311,-159.86148935,7.673e-05,2]
[343954927,1733137844320,-159.86148812,7.673e-05,2]
[343954929,1733137844330,-159.86148924,7.673e-05,2]
[343954931,1733137844339,-159.89349923,7.673e-05,2]
[343954933,1733137844348,-159.86148812,7.673e-05,2]
[343954935,1733137844357,-198.3320313,7.673e-05,2]
[343954937,1733137844366,-159.88212604,7.673e-05,2]
[343954939,1733137844375,-159.86139184,7.673e-05,2]
[343954941,1733137844384,-171.85109974,7.673e-05,2]
[343954943,1733137844394,-500.0,7.673e-05,2]
[343954944,1733137844403,-260.89206775,7.673e-05,2]
[343954945,1733137844413,-169.37941615,7.673e-05,2]
[343954946,1733137844422,-159.86148812,7.673e-05,2]
[343954947,1733137844431,-159.86148812,7.673e-05,2]
[343954948,1733137844440,-169.85283131,7.673e-05,2]
[343954949,1733137844449,-500.0,7.673e-05,2]
[343954950,1733137844462,-150.01,7.699e-05,2]
[343954951,1733137844472,-2739.53,7.699e-05,2]
[343954952,1733137844481,-785.43,7.699e-05,2]
[343954953,1733137844490,-2498.188646,7.7e-05,2]
[343954954,1733137844499,-213.36290517,7.7e-05,2]
[343954955,1733137844516,-1285.63709483,7.7e-05,2]
[343954956,1733137844526,-1698.29890495,7.7e-05,2]
[343954957,1733137844537,-3619.70755517,7.7e-05,2]
[343954958,1733137844548,-99552.80831193,7.7e-05,2]
[343954959,1733137844560,-96500.0,7.7e-05,2]
[343954960,1733137844571,-7170.59651256,7.7e-05,2]
[343954961,1733137844583,-2663.13191688,7.7e-05,2]
[343954962,1733137844595,-58200.05425169,7.7e-05,2]
[343954963,1733137844758,-409.33905324,7.7e-05,2]
[343954964,1733137844769,-795.60039055,7.7e-05,2]
[343954965,1733137844780,-10090.8990003,7.7e-05,2]
[343954966,1733137844791,-3294.53970842,7.7e-05,2]
[343954967,1733137844802,-38956.53084843,7.7e-05,2]
[343954968,1733137844814,-6365.37924693,7.7e-05,2]
[343954969,1733137844825,-6000.47480894,7.7e-05,2]
[343954970,1733137844836,-2231.25298438,7.7e-05,2]
[343954982,1733137846506,-3175.10735466,7.7e-05,2]
[343954983,1733137846517,-1158.36,7.7e-05,2]
[343954984,1733137846529,-12012.55671359,7.7e-05,2]
[343954985,1733137846540,-1427.05,7.7e-05,2]
[343954986,1733137846669,-1995.48097255,7.7e-05,2]
[343954987,1733137846680,-407.30120571,7.7e-05,2]
[343954988,1733137846692,-1566.95093932,7.7e-05,2]
[343954989,1733137846708,-561.97499,7.7e-05,2]
[343954990,1733137850979,10606.95,7.063e-05,2]
[343954992,1733137929016,250.0,6.964e-05,2]
[343954995,1733138020272,166.68,7.045e-05,2]
[343954996,1733138193710,359.7,6.839e-05,2]
[343954997,1733138314971,823.29,6.858e-05,2]
[343955002,1733138476349,500.0,6.818e-05,2]
[343955010,1733138756932,166.68,6.982e-05,2]
[343955017,1733138827187,958.89,6.791e-05,2]
[343955028,1733138928843,200.0,7e-05,2]
[343955029,1733138930413,500.0,7.1e-05,2]
[343955049,1733139032454,-700.0,7.2e-05,2]
[343955050,1733139032464,-1000.0,7.3e-05,2]
[343955051,1733139032473,-1200.0,7.4e-05,2]
[343955053,1733139032482,-150.0,7.427e-05,2]
[343955055,1733139032492,-1500.0,7.444e-05,2]
[343955057,1733139032500,-200.0,7.5e-05,2]
[343955059,1733139032510,-150.0,7.522e-05,2]
[343955061,1733139032519,-150.0,7.547e-05,2]
[343955063,1733139032528,-150.0,7.598e-05,2]
[343955064,1733139032538,-2500.0,7.6e-05,2]
[343955066,1733139032547,-2500.0,7.6e-05,2]
[343955068,1733139032556,-200.0,7.6e-05,2]
[343955070,1733139032566,-1186.4878,7.6e-05,2]
[343955072,1733139032575,-150.0,7.612e-05,2]
[343955074,1733139032584,-302.37,7.62e-05,2]
[343955076,1733139032594,-363.99,7.62e-05,2]
[343955078,1733139032604,-387.80863828,7.62e-05,2]
[343955085,1733139032686,-47.15136172,7.62e-05,2]
[343955086,1733139032695,-150.0,7.62e-05,2]
[343955087,1733139032705,-765.34863828,7.62e-05,2]
[343955091,1733139039412,-30.09136172,7.62e-05,2]
[343955092,1733139039422,-266.1388,7.63e-05,2]
[343955093,1733139039431,-763.42,7.63e-05,2]
[343955094,1733139039440,-958.89,7.64e-05,2]
[343955095,1733139039449,-150.0,7.644e-05,2]
[343955096,1733139039459,-150.0,7.645e-05,2]
[343955097,1733139039468,-159.855648,7.673e-05,2]
[343955098,1733139039477,-500.0,7.673e-05,2]
[343955099,1733139039486,-150.0,7.677e-05,2]
[343955100,1733139039496,-359.7,7.694e-05,2]
[343955101,1733139039505,-1000.0,7.699e-05,2]
[343955102,1733139039514,-150.01,7.699e-05,2]
[343955103,1733139039524,-752.71,7.699e-05,2]
[343955104,1733139039533,-150.0,7.699e-05,2]
[343955105,1733139039543,-1359.0,7.7e-05,2]
[343955106,1733139039552,-10635.93845359,7.7e-05,2]
[343955107,1733139039563,-11601.4518375,7.7e-05,2]
[343955108,1733139039575,-6007.445379,7.7e-05,2]
[343955109,1733139039660,-2698.65587306,7.7e-05,2]
[343955114,1733139041582,-455.06653965,7.7e-05,2]
[343955115,1733139041594,-953.21,7.7e-05,2]
[343955116,1733139041604,-11482.0222076,7.7e-05,2]
[343955117,1733139041673,-382.395264,7.7e-05,2]
[343955118,1733139041684,-25362.92415378,7.7e-05,2]
[343955119,1733139041696,-40744.9726,7.7e-05,2]
[343955120,1733139041746,-791.9940335,7.7e-05,2]
[343955121,1733139041758,-2522.09965362,7.7e-05,2]
[343955122,1733139041801,-862.3159344,7.7e-05,2]
[343955123,1733139041990,-5641.66691585,7.7e-05,2]
[343955142,1733139044027,-236.19020384,7.699e-05,2]
[343955143,1733139044036,-3952.24101138,7.7e-05,2]
[343955144,1733139044048,-1145.70007612,7.7e-05,2]
[343955145,1733139044093,-354.63080634,7.7e-05,2]
[343955146,1733139044105,-450.36688974,7.7e-05,2]
[343955147,1733139044116,-1322.25508215,7.7e-05,2]
[343955148,1733139044128,-617.65433298,7.7e-05,2]
[343955149,1733139044140,-1587.15000106,7.7e-05,2]
[343955150,1733139044272,-20974.82011611,7.7e-05,2]
[343955151,1733139044392,-1089.02094275,7.7e-05,2]
[343955152,1733139044404,-2582.26095875,7.7e-05,2]
[343955153,1733139044416,-2610.09343969,7.7e-05,2]
[343955154,1733139044569,-668.34972423,7.7e-05,2]
[343955160,1733139047150,-9597.59660001,7.7e-05,2]
[343955161,1733139047171,-1719.66,7.7e-05,2]
[343955162,1733139047187,-2276.79999987,7.7e-05,2]
[343955163,1733139047199,-9458.75354662,7.7e-05,2]
[343955164,1733139047268,-953.54354084,7.7e-05,2]
[343955165,1733139047353,-4560.0,7.7e-05,2]
[343955166,1733139047366,-21578.55160518,7.7e-05,2]
[343955167,1733139047415,-77543.10331845,7.7e-05,2]
[343955168,1733139047429,-953.68,7.7e-05,2]
[343955169,1733139047440,-500.748248,7.7e-05,2]
[343955170,1733139047451,-790.0,7.7e-05,2]
[343955171,1733139055019,23900.0,7.049e-05,2]
[343955172,1733139200769,500.0,6.992e-05,2]
[343955173,1733139201222,500.0,6.993e-05,2]
[343955175,1733139331643,3347.69,6.967e-05,2]
[343955176,1733139401213,3120.81,6.939e-05,2]
[343955177,1733139419278,3694.26,6.971e-05,2]
[343955178,1733139466984,150.82,5.533e-05,2]
[343955179,1733139589820,4707.74,6.901e-05,2]
[343955180,1733139651848,419.74,6.941e-05,2]
[343955181,1733139803210,500.0,6.886e-05,2]
[343955182,1733139803936,23900.0,6.928e-05,2]
[343955183,1733139828929,83998.0,0.0002,120]
[343955184,1733139853787,52000.0,0.0001961,120]
[343955192,1733140139130,10000.0,0.00019,120]
[343955193,1733140183095,240793.31382359,0.00019,120]
[343955202,1733140232346,-166.66,7.193e-05,2]
[343955203,1733140232360,-166.68,7.215e-05,2]
[343955204,1733140232370,-187.0,7.479e-05,2]
[343955205,1733140232381,-166.66,7.589e-05,2]
[343955206,1733140232391,-500.0,7.589e-05,2]
[343955207,1733140232401,-2230.00760699,7.589e-05,2]
[343955208,1733140232411,-2500.0,7.6e-05,2]
[343955209,1733140232421,-734.22198531,7.6e-05,2]
[343955210,1733140232432,-150.0,7.616e-05,2]
[343955211,1733140232445,-1137.383485,7.63e-05,2]
[343955212,1733140232454,-734.22198529,7.65e-05,2]
[343955213,1733140232464,-721.34,7.699e-05,2]
[343955214,1733140232474,-150.0,7.699e-05,2]
[343955215,1733140232483,-1130.0,7.7e-05,2]
[343955216,1733140232493,-1264.607,7.7e-05,2]
[343955217,1733140232503,-570.304,7.7e-05,2]
[343955218,1733140232513,-541.446,7.7e-05,2]
[343955219,1733140232523,-630.0,7.7e-05,2]
[343955220,1733140232532,-1893.0,7.7e-05,2]
[343955221,1733140232542,-562.0,7.7e-05,2]
[343955222,1733140232552,-3760.0,7.7e-05,2]
[343955223,1733140232562,-816.0,7.7e-05,2]
[343955224,1733140232572,-1252.0,7.7e-05,2]
[343955225,1733140232581,-975.0,7.7e-05,2]
[343955226,1733140232591,-535.0,7.7e-05,2]
[343955227,1733140232602,-3527.0,7.7e-05,2]
[343955228,1733140232612,-150.0,7.7e-05,2]
[343955229,1733140232622,-312.73,7.7e-05,2]
[343955230,1733140232632,-150.0,7.7e-05,2]
[343955231,1733140232642,-1097.0,7.7e-05,2]
[343955232,1733140232652,-241186.01039616,7.7e-05,2]
[343955302,1733140233990,-54241.14859351,7.7e-05,2]
[343955304,1733140234002,-7658.84352109,7.7e-05,2]
[343955723,1733140238412,-580.98750346,7.7e-05,2]
[343955725,1733140238424,-95386.64145416,7.7e-05,2]
[343955727,1733140238435,-1163.00445,7.7e-05,2]
[343955729,1733140238449,-38151.1691915,7.7e-05,2]
[343955731,1733140238460,-11569.9999975,7.7e-05,2]
[343955748,1733140238632,-346.92048,7.7e-05,2]
[343955809,1733140239116,-276.15323904,7.7e-05,2]
[343955811,1733140239128,-464.88,7.7e-05,2]
[343955851,1733140240528,-692.78086289,7.7e-05,2]
[343955852,1733140240541,-952.5,7.7e-05,2]
[343955853,1733140240553,-328.05823,7.7e-05,2]
[343955854,1733140240565,-888.62002223,7.7e-05,2]
[343955855,1733140240680,-301.2,7.7e-05,2]
[343955856,1733140240692,-500.88,7.7e-05,2]
[343955862,1733140243558,-5127.33913653,7.7e-05,2]
[343955863,1733140243570,-2921.46615175,7.7e-05,2]
[343955864,1733140243582,-1556.60367748,7.7e-05,2]
[343955865,1733140243705,-2613.19999953,7.7e-05,2]
[343955867,1733140243717,-71538.75,7.7e-05,2]
[343955868,1733140243729,-5579.81016519,7.7e-05,2]
[343955869,1733140243741,-804.39999874,7.7e-05,2]
[343955873,1733140243829,-14507.1277262,7.7e-05,2]
[343955886,1733140246613,-476.65,7.7e-05,2]
[343955887,1733140246649,-1968.94260619,7.7e-05,2]
[343955888,1733140246736,-453913.76603309,7.7e-05,2]
[343955889,1733140246746,-20705.81158631,7.7e-05,2]
[343955890,1733140246758,-1839.99999992,7.7e-05,2]
[343955898,1733140246944,-95327.22621862,7.7e-05,2]
[343955899,1733140342911,1812.75607582,0.000171,60]
[343955900,1733140418805,919.92,7.152e-05,2]
[343955901,1733140430711,250.0,7.133e-05,2]
[343955902,1733140537232,12022.95,7.044e-05,2]
[343955903,1733140622920,824.74,7.023e-05,2]
[343955904,1733140719781,200.0,6.936e-05,2]
[343955905,1733140765181,1200.0,7.162e-05,2]
[343955906,1733140876442,1001.04,6.984e-05,2]
[343955907,1733140902200,369.81,7.042e-05,2]
[343955908,1733141000683,500.0,6.986e-05,2]
[343955911,1733141161639,6247.38,6.889e-05,2]
[343955949,1733141431368,-166.66,7.234e-05,2]
[343955950,1733141431378,-150.0,7.492e-05,2]
[343955951,1733141431387,-159.41462961,7.532e-05,2]
[343955952,1733141431468,-61.08537039,7.532e-05,2]
[343955953,1733141431477,-150.0,7.597e-05,2]
[343955954,1733141431487,-300.0,7.597e-05,2]
[343955955,1733141431497,-300.0,7.597e-05,2]
[343955956,1733141431506,-244.74066177,7.598e-05,2]
[343955957,1733141431515,-1252.0,7.598e-05,2]
[343955958,1733141431524,-574.1,7.598e-05,2]
[343955959,1733141431533,-3760.0,7.598e-05,2]
[343955960,1733141431543,-3527.0,7.598e-05,2]
[343955961,1733141431552,-267.86,7.598e-05,2]
[343955962,1733141431562,-535.0,7.598e-05,2]
[343955963,1733141431571,-500.0,7.6e-05,2]
[343955964,1733141431581,-2500.0,7.6e-05,2]
[343955965,1733141431590,-150.0,7.604e-05,2]
[343955966,1733141431599,-880.65,7.604e-05,2]
[343955967,1733141431609,-244.74066176,7.649e-05,2]
[343955968,1733141431618,-274.96685187,7.673e-05,2]
[343955969,1733141431627,-500.0,7.673e-05,2]
[343955970,1733141431637,-691.29,7.699e-05,2]
[343955971,1733141431650,-169394.21108211,7.699e-05,2]
[343955972,1733141431687,-2312.0,7.699e-05,2]
[343955973,1733141431719,-7987.73386946,7.699e-05,2]
[343955976,1733141431756,-27513.52745445,7.699e-05,2]
[343956028,1733141437462,-500.0,7.673e-05,2]
[343956029,1733141437471,-429.92628656,7.699e-05,2]
[343956030,1733141437557,-9679.29192804,7.699e-05,2]
[343956031,1733141437570,-2040.972936,7.699e-05,2]
[343956032,1733141437614,-921.69,7.699e-05,2]
[343956033,1733141437669,-14255.09254558,7.699e-05,2]
[343956034,1733141437680,-339.43241409,7.7e-05,2]
[343956035,1733141437692,-783.56758591,7.7e-05,2]
[343956036,1733141437702,-1261.0,7.7e-05,2]
[343956037,1733141437713,-566.0,7.7e-05,2]
[343956038,1733141437725,-630.0,7.7e-05,2]
[343956039,1733141437735,-1893.0,7.7e-05,2]
[343956040,1733141437746,-3827.41075766,7.7e-05,2]
[343956057,1733141439627,-15405.79703221,7.7e-05,2]
[343956058,1733141439639,-10142.8895,7.7e-05,2]
[343956059,1733141439674,-5765.4101687,7.7e-05,2]
[343956060,1733141439686,-2666.0300316,7.7e-05,2]
[343956061,1733141439773,-417.76166719,7.7e-05,2]
[343956077,1733141442386,-2500.0,7.599e-05,2]
[343956079,1733141442395,-3474.66063647,7.7e-05,2]
[343956081,1733141442410,-603.06,7.7e-05,2]
[343956084,1733141442421,-4999.99999044,7.7e-05,2]
[343956095,1733141442637,-730.07140233,7.7e-05,2]
[343956096,1733141442650,-652.62529538,7.7e-05,2]
[343956102,1733141442734,-3063.82739274,7.7e-05,2]
[343956114,1733141442851,-1164.0,7.7e-05,2]
[343956116,1733141442861,-150.53180449,7.7e-05,2]
[343956129,1733141442971,-951.2,7.7e-05,2]
[343956131,1733141442982,-4089.1937,7.7e-05,2]
[343956133,1733141442993,-3017.31149978,7.7e-05,2]